Cogmind - Beta 13 @@@ ROGUE MODE // 2024.04.26 @ 20:45:44 Player: Maxi98se Result: Destroyed by S-10 Pest with Light Assault Rifle Performance ------------- Evolutions (1) 500 Regions Visited (2) 400 Robots Destroyed (31) 155 Value Destroyed (688) 688 Prototype IDs (0) 0 Alien Tech Used (0) 0 Bonus (0) 0 TOTAL SCORE: 1743 Bonus ------- None Cogmind --------- Core Integrity 0/400 Matter 201/300 Energy 100/100 System Corruption 0% Temperature Cool (0) Movement Flying (120) Ox1 Location -9/Materials Parts ------- > --- POWER (1) -------- (None) > --- PROPULSION (2) --- Flight Unit > --- UTILITY (4) ------ Visual Processing Unit Visual Processing Unit Terrain Scan Processor Utility Shielding > --- WEAPON (2) ------- Light Assault Rifle Heavy Hammer > --- INVENTORY (5) ---- Light Treads Heat Sink Terrain Scanner Utility Shielding Grenade Launcher Peak State ------------ > --- POWER ------------ Ion Engine > --- PROPULSION ------- Backup Propulsion I Backup Propulsion I > --- UTILITY ---------- Visual Processing Unit Visual Processing Unit Terrain Scan Processor Utility Shielding > --- WEAPON ----------- Backup Laser I Backup Laser I > --- INVENTORY -------- Light Treads Heat Sink Terrain Scanner Utility Shielding Grenade Launcher [Rating: 12] Favorites ----------- Power Ion Engine Engine Ion Engine Propulsion Light Treads Treads Light Treads Hover Unit Backup Propulsion I Flight Unit Flight Unit Utility Visual Processing Unit Storage Small Storage Unit Processor Visual Processing Unit Protection Utility Shielding Weapon Grenade Launcher Energy Gun Backup Laser I Ballistic Gun Heavy Assault Rifle Launcher Grenade Launcher Impact Weapon Heavy Hammer Build | -11 -10 -9 ------- Run | Yrd Mat Mat Slots Evolved 2 | . . 2 Power . | . . . Propulsion . | . . . Utility 2 | . . 2 Weapon . | . . . Parts Attached 29 | 6 16 7 Power 4 | 1 3 . Engine 4 | 1 3 . Core . | . . . Reactor . | . . . Propulsion 10 | 2 5 3 Treads 7 | 2 3 2 Leg . | . . . Wheel . | . . . Hover . | . . . Flight 3 | . 2 1 Utility 6 | 1 3 2 Device . | . . . Storage 1 | 1 . . Processor 4 | . 2 2 Hackware . | . . . Protection 1 | . 1 . Artifact . | . . . Weapon 9 | 2 5 2 Energy Gun 1 | 1 . . Energy Cannon . | . . . Ballistic Gun 4 | 1 2 1 Ballistic Cannon . | . . . Launcher 3 | . 3 . Special Weapon . | . . . Impact Weapon 1 | . . 1 Slashing Weapon . | . . . Piercing Weapon . | . . . Special Melee Weapon . | . . . Unidentified Prototypes . | . . . Parts Lost 8 | . 1 7 Power 2 | . 1 1 Propulsion 5 | . . 5 Utility . | . . . Weapon 1 | . . 1 Highest Loss Streak 3 | . 1 3 To Critical Strikes . | . . . Average Slot Usage (%) 95 | . 98 79 Engine 12 | . 13 7 Treads 20 | . 23 6 Hover 1 | . . 9 Flight 3 | . 4 1 Processor 23 | . 22 25 Protection 4 | . 3 11 Energy Gun 2 | . 1 11 Ballistic Gun 8 | . 10 1 Launcher 14 | . 16 6 Naked Turns . | . . . Heaviest Build 12 | 12 12 12 Greatest Support 40 | 40 40 40 Greatest Overweight (x) 2 | . 2 2 Average Overweight (x) . | . . . Largest Inventory Capacity 8 | 8 8 5 Average Capacity 5 | 6 5 5 Most Carried 5 | . 5 5 Average Carried 4 | . 4 5 Final Capacity 8 | 8 5 5 Final Carried 5 | . 5 5 Class Distribution -------------------- 63% | Mutant 36% | Scavenger-Mutant Dominant Class ---------------- Mutant | -10/Materials Mutant | -9/Materials Resources | -11 -10 -9 ----------- Run | Yrd Mat Mat Matter Collected 618 | 198 276 144 Remotely . | . . . Salvage Created 626 | . 479 147 Parts 55 | . 47 8 Haulers Intercepted 1 | . 1 . Recyclers Shooed 2 | . 2 . Parts Field Recycled . | . . . Retrieved Matter . | . . . Parts Self-Destructed . | . . . Prevented . | . . . Kills | -11 -10 -9 ------- Run | Yrd Mat Mat Combat Hostiles Destroyed 24 | . 19 5 Melee 1 | . . 1 Guns 12 | . 8 4 AOE 11 | . 11 . Classes Destroyed 7 | . 6 1 Worker 1 | . 1 . Builder 2 | . 2 . Hauler 1 | . 1 . Watcher 3 | . 3 . Swarmer 10 | . 9 1 Grunt 13 | . 10 3 Sentry 1 | . . 1 Best Kill Streak 6 | . 6 2 Combat Bots Only 5 | . 5 2 Max Kills in Single Turn 3 | . 3 1 Gunslinging . | . . . Exploded 2 | . 2 . Melee 1 | . . 1 Uniques/NPCs Destroyed . | . . . Combat | -11 -10 -9 -------- Run | Yrd Mat Mat Hostile Shots Fired 196 | . 92 104 Missed 53 | . 16 37 Damage Taken 1609 | . 795 814 Core 539 | . 139 400 Absorbed by Shields . | . . . Core Remaining (%) 72 | 100 44 . Volleys Fired 57 | . 44 13 Largest 2 | . 2 2 Hottest 60 | . 60 60 Shots Fired 112 | . 86 26 Gun 88 | . 62 26 Cannon . | . . . Launcher 24 | . 24 . Special . | . . . Kinetic 52 | . 52 . Thermal 36 | . 10 26 Explosive 24 | . 24 . Electromagnetic . | . . . Robot Hit Streak 7 | . 6 7 Robot Miss Streak 3 | . 3 2 Penetration Max . | . . . Secondary Targets 2 | . 2 . Max Gunslinging Chain 1 | . 1 . Shots Hit Robots 68 | . 48 20 Core Hits 58 | . 46 12 Critical Kills 1 | . 1 . Critical Parts Destroyed . | . . . Critical Strikes 1 | . 1 . Destroy 1 | . 1 . Melee Attacks 3 | . . 3 Impact 3 | . . 3 Slashing . | . . . Piercing . | . . . Sneak Attacks 1 | . . 1 Combat Hostiles . | . . . Follow-up Attacks . | . . . Damage Inflicted 1820 | . 1459 361 Guns 682 | . 532 150 Cannons . | . . . Explosions 919 | . 919 . Melee 186 | . . 186 Ramming 33 | . 8 25 Kinetic 440 | . 440 . Thermal 242 | . 92 150 Explosive 919 | . 919 . Electromagnetic . | . . . Impact 186 | . . 186 Slashing . | . . . Piercing . | . . . Highest Corruption . | . . . Average Corruption . | . . . Corruption Purged . | . . . Corruption Blocked . | . . . Overload Shots . | . . . Overflow Damage 40 | . 4 36 Projectiles . | . . . Explosions 4 | . 4 . Melee 36 | . . 36 Knockbacks 2 | . . 2 Impact 2 | . . 2 Kinetic . | . . . Secondary . | . . . Self-Inflicted Damage 87 | . 84 3 Shots 4 | . 4 . Rammed 33 | . 6 27 Targets Rammed 33 | . 6 27 Kicked . | . . . Crushed . | . . . Highest Temperature 84 | . 84 27 Average Temperature 24 | . 30 7 Received Heat Transfer 423 | . 204 219 Siege Activations . | . . . Robots Corrupted . | . . . Combat Hostiles . | . . . Parts Fried . | . . . Impact Corruptions 2 | . . 2 Robots Melted . | . . . Combat Hostiles . | . . . Parts Melted 3 | . 1 2 Heat Transferred 829 | . 200 629 Parts Sabotaged . | . . . Parts Stolen . | . . . Parts Stripped . | . . . Power Chain Reactions . | . . . Alert | -11 -10 -9 ------- Run | Yrd Mat Mat Peak Influence 216 | . 216 176 Initial 55 | . . 55 Average 105 | . 116 88 Maximum Alert Level 1 | . 1 . Low Security (%) 91 | 100 89 100 Level 1 8 | . 10 . Level 2 . | . . . Level 3 . | . . . Level 4 . | . . . Level 5 . | . . . High Security . | . . . Max Security . | . . . Squads Dispatched 9 | . 6 3 Investigation 6 | . 5 1 Extermination . | . . . Reinforcement 3 | . 1 2 Assault . | . . . Garrison . | . . . Intercept . | . . . Searches Triggered . | . . . Construction Impeded . | . . . Haulers Reinforced . | . . . Active Scanning Responses . | . . . Cargo Convoy Interrupts . | . . . Stealth | -11 -10 -9 --------- Run | Yrd Mat Mat Distress Signals 3 | . 2 1 Communications Jammed . | . . . Distress Signals . | . . . Times Spotted 43 | . 25 18 Peak Tracking Total 8 | . 6 8 Tactical Retreats . | . . . Traps | -11 -10 -9 ------- Run | Yrd Mat Mat Traps Triggered 3 | . 3 . Indirectly . | . . . Trap Hack Attempts . | . . . Triggered . | . . . Disarmed . | . . . Reprogrammed . | . . . Reused . | . . . Traps Extracted . | . . . Installed . | . . . Triggered . | . . . Machines | -11 -10 -9 ---------- Run | Yrd Mat Mat Machines Disabled 4 | . 4 . Max in Single Turn 2 | . 2 . Machines Repaired . | . . . Machines Dismantled . | . . . Machines Sabotaged . | . . . Overloaded Fab Kills . | . . . Hacking | -11 -10 -9 --------- Run | Yrd Mat Mat Machines Accessed 8 | . 7 1 Terminals 5 | . 5 . Fabricators . | . . . Repair Stations 1 | . . 1 Recycling Units 2 | . 2 . Scanalyzers . | . . . Garrison Access . | . . . Total Hacks 22 | . 19 3 Successful 12 | . 11 1 Failed 10 | . 8 2 Catastrophic 1 | . 1 . Database Lockouts . | . . . Manual . | . . . Terminals 11 | . 11 . Fabricators . | . . . Repair Stations 3 | . . 3 Recycling Units 8 | . 8 . Scanalyzers . | . . . Garrison Access . | . . . Terminal Hacks 4 | . 4 . Locate Traps 1 | . 1 . Maintenance Status 1 | . 1 . Transport Status 1 | . 1 . Zone Layout 1 | . 1 . Fabricator Hacks . | . . . Repair Station Hacks 1 | . . 1 Refit 1 | . . 1 Recycling Unit Hacks 7 | . 7 . Recycle Component 4 | . 4 . Process 1 | . 1 . Retrieve Components 2 | . 2 . Scanalyzer . | . . . Garrison Access Hacks . | . . . Unauthorized Hacks . | . . . Terminals . | . . . Fabricators . | . . . Repair Stations . | . . . Recycling Units . | . . . Scanalyzers . | . . . Garrison Access . | . . . Data Cores Recovered . | . . . Used . | . . . Hacking Detections 7 | . 6 1 Full Trace Events 4 | . 3 1 Feedback Events . | . . . Feedback Blocked . | . . . Robot Schematics Acquired . | . . . Robots Built . | . . . Authchips . | . . . Time . | . . . Total Robot Build Rating . | . . . Part Schematics Acquired . | . . . Parts Built . | . . . Authchips . | . . . Time . | . . . Total Part Build Rating . | . . . Parts Repaired . | . . . Time . | . . . Parts Recycled 4 | . 4 . Recycled Matter 21 | . 21 . Retrieved Matter . | . . . Retrieved Components 13 | . 13 . Parts Scanalyzed . | . . . Part Schematics Acquired . | . . . Parts Damaged . | . . . Bothacking | -11 -10 -9 ------------ Run | Yrd Mat Mat Used RIF Installer . | . . . Robots Hacked . | . . . Non-combat . | . . . Combat . | . . . Robot Hacks Applied . | . . . Relay Couplers Released . | . . . Fabnet Peak Effective % . | . . . Robots Rewired . | . . . Allies Hacked . | . . . Hacks Repelled . | . . . Allies | -11 -10 -9 -------- Run | Yrd Mat Mat Total Allies . | . . . Largest Group . | . . . Highest-Rated Group . | . . . Highest-Rated Ally . | . . . Total Orders . | . . . Ally Attacks . | . . . Total Damage . | . . . Kills . | . . . Allies Corrupted . | . . . Allies Melted . | . . . Intel | -11 -10 -9 ------- Run | Yrd Mat Mat Robot Analysis Total . | . . . Derelict Logs Recovered . | . . . Drone Launches . | . . . Drone Recoveries . | . . . Exploration | -11 -10 -9 ------------- Run | Yrd Mat Mat Turns Passed 2074 | 118 1623 333 Spaces Moved 1320 | 73 1032 215 Core 28 | 6 . 22 Treads 893 | 67 769 57 Legs . | . . . Wheels . | . . . Hover 114 | . . 114 Flight 285 | . 263 22 Fastest Speed 37 | 50 37 76 Average Speed 135 | 150 140 105 Slowest Speed 200 | 160 200 160 Overloaded Moves . | . . . Propulsion Burnouts . | . . . Robots Hopped 1 | . 1 . Cave-ins Triggered . | . . . Exploration Rate (%) 40 | 5 95 20 Regions Visited 2 Branch Regions . Pre-discovered Areas . | . . . Known Exits Taken 1 | . 1 . Unknown Exits Taken 1 | 1 . . Scrap Searched . | . . . Spaces Dug . | . . . Terrain Destroyed 78 | . 78 . Melee . | . . . Projectile . | . . . AOE 78 | . 78 . Terrain Rammed . | . . . Walls Destroyed . | . . . Machines Disabled . | . . . Actions | -11 -10 -9 --------- Run | Yrd Mat Mat Total 1467 | 78 1116 273 Wait 4 | . . 4 Move 1316 | 72 1029 215 Hop 1 | . 1 . Pick Up 6 | . 6 . Fast Attach 24 | 6 11 7 Attach 1 | . 1 . Detach 5 | . 5 . Swap 4 | . 4 . Drop 13 | . 9 4 Fire 57 | . 44 13 Melee 3 | . . 3 Ram 15 | . 1 14 Kick . | . . . Crush 18 | . 5 13 Escape Stasis . | . . . Rewire . | . . . Trap . | . . . Miscellaneous . | . . . Route ------- -11/Scrapyard -10/Materials (discovered 6 exits: *Mat x3 / *Min x2 / [*Sub]) -9/Materials (discovered 1 exit: [*Min]) History --------- Turn | Location | Event 12 | -11/Scrapyard | Discovered new exit (range 16) 119 | -11/Scrapyard | Entered Materials 249 | -10/Materials | Discovered new exit (range 3) 251 | -10/Materials | Identified exit to Materials 514 | -10/Materials | Discovered exit to Materials (range 9) 533 | -10/Materials | Build established: Scavenger-Mutant 876 | -10/Materials | Discovered exit to Materials (range 17) 985 | -10/Materials | Discovered new exit (range 12) 1071 | -10/Materials | Identified exit to Mines 1281 | -10/Materials | Build established: Mutant 1297 | -10/Materials | Discovered exit to Mines (range 12) 1548 | -10/Materials | Core integrity fell below 50% 1679 | -10/Materials | Discovered new exit (range 9) 1742 | -10/Materials | Entered another Materials area 1742 | -9/Materials | Evolved 2 slots: Utility x2 1888 | -9/Materials | Lost 3 parts (2n1w) 1953 | -9/Materials | Discovered new exit (range 12) 1990 | -9/Materials | Core integrity fell below 50% 2035 | -9/Materials | Core integrity fell below 20% 2075 | -9/Materials | Destroyed by S-10 Pest with Light Assault Rifle Last Messages --------------- Sneak attack on R-06 Scavenger. Destroyed Lgt. Ion Engine. R-06 Scavenger system corrupted by crushing effect. U-05 Engineer lays Concrete. U-05 Engineer builds a Wall. K-01 Serf collects debris. M-13 Machinist fits Backup Power I on R-06 Scavenger. U-05 Engineer lays Concrete. K-01 Serf collects debris. U-05 Engineer lays Concrete. C-30 ARC bursts open, deploying its payload. S-10 Pest unfolds itself. U-05 Engineer lays Concrete. K-01 Serf collects debris. U-05 Engineer lays Concrete. K-01 Serf collects debris. U-05 Engineer lays Concrete. K-01 Serf collects debris. Map ----- +----------------------------------------------------+ | | | | | | | | | | | | | | | | | | | | | ?????????????????????????????????????????????????? | | ?????????????????????????????????????????????????? | | ?????????????????????????????????????????????????? | | ####?????????????????????????????????????????????? | | ???????????????????????????????????????????? | | ???????????????????????????????????????????? | | ?????????????????##########????????????????? | | +#+????????????????????# #????????????????? | | ???????????????????????# "" #????????????????? | | ??????????????????###### " ##???????????????? | | ???????????######## # ;#???????????????? | | ???????????# # # ;##??????????????? | | ???????????# # ; ;#??????????????? | | ???????????# # ; ;;#??????????????? | | ????? ????# # ; ;##??????????????? | | ????? ?? # # ; @ ; #??????????????? | | ?????? ?# ;;;;;;;;; #??????????????? | | #######+##### #### k #ss ; ##??????????????? | | s ;# #???????????????? | | % < ####???????????????? | | """ #??????????????????? | | +## """ # # #??????????????????? | | # """ u s #######??????????????????? | | !# #????????????????????????? | | # ##????????????????????????? | | # #????????????????????????? | | # #????????????????????????? | | # #????????????????????????? | | # " ##????????????????????????? | | ### "%" ?????????????????????????? | | ??# " ?????????????????????????? | | ??# " ????????????????????????? | | ?? "" ???????????????????????? | | ? ????????????????????????? | | ? ???????????????????????? | | ?????????????????????????? | | == ?????????????????????????? | | = " ?????????????????????????? | | ? ??? ?????????????????????????? | | ? ????????????????????????????????? | +----------------------------------------------------+ Best States ------------- Heat Dissipation 28 Energy Generation 10 Energy Capacity 250 Matter Stores 300 Matter Capacity 300 Sight Range 18 Terrain Scan Density 85 Utility Shielding 33 Evasion (%) 62 Recoil Reduction 2 Item Schematics ----------------- None Robot Schematics ------------------ None Fabricated ------------ Nothing Alien Tech Used ----------------- None Achievements -------------- Loot Pinata Oops Challenges ------------ None Game ------ Seed FocalSapperDiverter Manual? 0 Play Time 00:31:25 Cumulative 1.4 hours Start 2024.04.26 @ 18:21:26 End 2024.04.26 @ 20:45:44 Sessions 3 Manual Loads 0 Difficulty Rogue Special Mode None Game No. 3 Rogue 3 Adventurer 0 Explorer 0 Win Type - Total 0 Types 0/0/0/0/0/0/0/0/0 Lore% 0 Gallery% 3 Achievement% 3 Wizard Run 0 Options --------- Layout 1 ASCII 0 Keyboard 1 Movement Vi Keybinds 0 Fullscreen 1 Font 16/SmallcapsGlow Map View 50x40 Zoom Use 0% Tactical HUD 0 Map Filters NONE Filters NONE Steam 1 RUN: 94a7d34c-e3ea-4f6b-9b0e-8952c61c9c33